[Event "Khanty-Mansiysk FIDE GP (Women)"]
[Site "Khanty-Mansiysk"]
[Date "2014.04.16"]
[Round "7"]
[White "Muzychuk, Anna"]
[Black "Zhao, Xue"]
[Result "1-0"]
[ECO "C50"]
[WhiteElo "2560"]
[BlackElo "2552"]
[Annotator "ChessBase Website"]
[PlyCount "69"]
[EventDate "2014.04.09"]
[EventType "tourn"]
[EventRounds "11"]
[EventCountry "RUS"]
[EventCategory "10"]
[SourceTitle "CBM 160"]
[Source "ChessBase"]
[SourceDate "2014.05.15"]
[SourceVersion "1"]
[SourceVersionDate "2014.05.15"]
[SourceQuality "1"]
[TimeControl "40/5400+30:1800+30"]
[WhiteClock "1:30:00"]
[BlackClock "1:30:00"]

1. e4 {[%emt 0:00:00]} e5 {[%emt 0:00:00]} 2. Nf3 {[%emt 0:00:00]} Nc6 {
[%emt 0:00:00]} 3. Bc4 {[%emt 0:00:00]} Bc5 {[%emt 0:00:05]} 4. O-O {[%emt 0:
00:00]} Nf6 {[%emt 0:00:26]} 5. d3 {[%emt 0:00:14]} O-O {[%emt 0:03:36]} 6.
Nbd2 {[%emt 0:00:46]} (6. h3 d6 7. c3 a6 8. Bb3 h6 9. Be3 Bxe3 10. fxe3 Na5 11.
Bc2 c5 12. Nbd2 b5 13. Qe1 Rb8 14. Qg3 Nh5 15. Qf2 Nf6 16. Qg3 Nh5 17. Qh2 Qe7
18. Rf2 Bd7 19. g4 Nf6 20. Raf1 Nh7 21. Qg3 g6 22. Nh4 c4 23. d4 b4 24. Ndf3 b3
25. axb3 cxb3 26. Bd3 Bb5 27. Bxb5 axb5 28. dxe5 Nc4 29. exd6 Nxd6 30. Qe5 Qxe5
31. Nxe5 Ng5 32. Rh2 Rb7 33. Nc6 Nc4 34. Nd4 b4 35. Rc1 Ra8 {Harikrishna,P 
(2706)-Giri,A (2734) Wijk aan Zee 2014 0-1 (71)}) 6... a6 {[%emt 0:01:08]} 7.
c3 {[%emt 0:00:52]} Ba7 {[%emt 0:01:44]} 8. h3 {[%emt 0:02:53]} d5 {[%emt 0:10:
28]} 9. exd5 {[%emt 0:02:36]} Nxd5 {[%emt 0:00:04]} 10. Ne4 {[%emt 0:05:14]}
Bf5 {[%emt 0:11:26]} 11. Re1 {[%emt 0:05:56]} b5 $146 {[%emt 0:10:40]} (11...
Re8 12. Bg5 Qd7 13. Qd2 Be6 14. Rad1 f6 15. Bh4 Rad8 16. Qc1 Rf8 17. d4 exd4
18. cxd4 Bf7 19. Bg3 Qc8 20. Bxa6 Ndb4 21. Bc4 Nxd4 22. Nxd4 Bxd4 23. Bd6 cxd6
24. Bxf7+ Rxf7 25. Rxd4 Nc2 26. Nxd6 Qc6 27. Rc4 Qxd6 28. Rxc2 h6 29. Rce2 Rc7
30. Qb1 Qd5 31. Qg6 Rf8 32. Re8 Rcf7 33. a4 Qd4 34. Qc2 Qd7 35. R8e3 Kh8 36. b4
Qd6 37. b5 Rc7 38. Qg6 Qb4 39. Re8 Rc8 40. R8e7 Rg8 41. Qe4 {Rodriguez Vila,A 
(2504)-Roselli Mailhe,B (2428) Mar del Plata 2001 1/2-1/2 (62)}) 12. Bb3 {
[%emt 0:01:29]} Bg6 {[%emt 0:01:06]} 13. Bg5 {[%emt 0:09:26]} f6 {[%emt 0:04:
45]} 14. Be3 {[%emt 0:16:42]} Kh8 {[%emt 0:05:10]} 15. Bxa7 {[%emt 0:00:57]}
Rxa7 {[%emt 0:00:36]} 16. d4 $14 {[%emt 0:02:54][%csl Ra7] Zhao Xue certainly
did not equalize from the opening, and once Muzychuk broke the center open
with d4 it was clear that too many of the Chinese player's pieces were
misplaced. the game.} Nf4 {[%emt 0:00:38]} 17. dxe5 {[%emt 0:10:07]} Nd3 {
[%emt 0:01:02]} 18. exf6 {[%emt 0:05:38] An obvious and simple exchange
sacrifice, which on top of that gave the Slovenian player two pawns, ripped
apart Black's king shelter and from then on it was easy for Muzycuhk to win}
Nxe1 {[%emt 0:01:25]} 19. fxg7+ {[%emt 0:00:29]} Kxg7 {[%emt 0:00:05]} 20. Qxe1
{[%emt 0:01:13]} Qe7 {[%emt 0:17:58]} 21. Nfg5 {[%emt 0:04:38]} Rf5 $2 {
[%emt 0:01:35]} 22. f4 {[%emt 0:10:25]} Kh8 {[%emt 0:08:52]} 23. Qh4 {[%emt 0:
06:42]} Rf8 {[%emt 0:06:54]} 24. Re1 {[%emt 0:03:54]} Nd8 {[%emt 0:05:21]} 25.
Qf2 {[%emt 0:05:16]} Ra8 {[%emt 0:00:15]} 26. Nc5 {[%emt 0:01:07]} Qd6 {
[%emt 0:00:30]} 27. g3 {[%emt 0:00:20]} h6 {[%emt 0:01:42]} 28. Nge6 {[%emt 0:
01:55]} Rf6 {[%emt 0:02:12]} 29. Rd1 {[%emt 0:00:21]} Qxd1+ {[%emt 0:00:14]}
30. Bxd1 {[%emt 0:00:05]} Nxe6 {[%emt 0:00:03]} 31. Nxe6 {[%emt 0:00:31]} Re8 {
[%emt 0:00:12]} 32. Nc5 {[%emt 0:01:12]} Rd6 {[%emt 0:00:23]} 33. Bc2 {[%emt 0:
01:12]} Red8 {[%emt 0:01:20]} 34. f5 {[%emt 0:01:00]} Rd2 {[%emt 0:00:11]} 35.
Qf4 {[%emt 0:00:40]} 1-0